bitfinex/quotes_BTCUSD_20250716
["timestamp","ask_amount","ask_price","bid_price","bid_amount"]
[1752697054229,0.01620009,119320.0,119310.0,0.69856264]
[1752697054456,0.04134192,119320.0,119310.0,0.46430251]
[1752697054669,0.0329611,119320.0,119310.0,0.48106499]
[1752697054886,0.01620009,119320.0,119310.0,0.48944602]
[1752697055105,0.01620009,119320.0,119310.0,1.23959199]
[1752697055106,0.00781976,119320.0,119310.0,1.23959199]
[1752697055338,0.00781976,119320.0,119310.0,1.32710227]
[1752697056202,0.0022,119330.0,119320.0,1.118346]
[1752697056412,0.0022,119330.0,119320.0,2.65115053]
[1752697056660,0.0022,119330.0,119320.0,3.0446965]
[1752697057306,0.0022,119330.0,119320.0,3.0680312]
[1752697057513,0.0022,119330.0,119320.0,1.0882622]
[1752697057736,0.0022,119330.0,119320.0,1.06691323]
[1752697057981,0.0022,119330.0,119320.0,3.59792923]
[1752697058193,0.0022,119330.0,119320.0,2.33653526]
[1752697058440,0.0022,119330.0,119320.0,0.67336726]
[1752697058664,0.0022,119330.0,119320.0,2.46185123]
[1752697058888,0.01895919,119330.0,119320.0,2.4534709]
[1752697059116,0.02733903,119330.0,119320.0,1.71621893]
[1752697059438,0.02733903,119330.0,119320.0,1.50448564]
[1752697059725,0.04409913,119330.0,119320.0,1.09687714]
[1752697059921,0.02733952,119330.0,119320.0,1.08067721]
[1752697060143,0.03571964,119330.0,119320.0,1.06391564]
[1752697060349,0.03571964,119330.0,119320.0,1.22209646]
[1752697060350,0.20332208,119330.0,119320.0,1.22209646]
[1752697060567,0.20332208,119330.0,119320.0,0.89629915]
[1752697060775,0.60271851,119330.0,119320.0,0.35752887]
[1752697061425,0.20917254,119330.0,119320.0,0.35752887]
[1752697061645,0.20917254,119330.0,119320.0,0.35756887]
[1752697061871,0.60271851,119330.0,119320.0,0.01756887]
[1752697062082,0.20917254,119330.0,119320.0,0.01856887]
[1752697062296,0.20917254,119330.0,119320.0,0.12549587]
[1752697062516,0.20917254,119330.0,119320.0,0.01652887]
[1752697062517,0.60271851,119330.0,119320.0,0.01652887]
[1752697062945,0.62011851,119330.0,119320.0,0.01652887]
[1752697063161,0.22657254,119330.0,119320.0,0.01652887]
[1752697063367,0.62011851,119330.0,119320.0,0.35652887]
[1752697063608,0.22657254,119330.0,119320.0,0.35652887]
[1752697063834,0.62011851,119330.0,119320.0,0.35652887]
[1752697064038,0.62011851,119330.0,119320.0,0.35552887]
[1752697065317,0.22657254,119330.0,119320.0,0.01552887]
[1752697065557,0.62011851,119330.0,119320.0,0.01552887]
[1752697065762,0.62011851,119330.0,119320.0,0.35552887]
[1752697065973,0.62011851,119330.0,119320.0,0.35551907]
[1752697066213,0.22657254,119330.0,119320.0,0.35551907]
[1752697066427,0.62011851,119330.0,119320.0,0.35551907]
[1752697066637,0.75215851,119330.0,119320.0,0.35552072]
[1752697066875,0.75215851,119330.0,119320.0,0.01552072]
[1752697067082,0.75215851,119330.0,119320.0,0.35552072]
[1752697067290,0.35861254,119330.0,119320.0,0.35552072]
[1752697067515,0.75215851,119330.0,119320.0,0.35552072]
[1752697068138,0.35861254,119330.0,119320.0,0.01552072]
[1752697068351,0.20917254,119330.0,119320.0,0.01552072]
[1752697068587,0.75203851,119330.0,119320.0,0.01552072]
[1752697068817,0.35849254,119330.0,119320.0,0.01552072]
[1752697069018,0.75211851,119330.0,119320.0,0.01552072]
[1752697069457,0.75199851,119330.0,119320.0,0.01552072]
[1752697069683,0.35845254,119330.0,119320.0,0.01552072]
[1752697069902,0.75199851,119330.0,119320.0,0.01552072]
[1752697071509,0.76889851,119330.0,119320.0,0.01552072]
[1752697071734,0.37535254,119330.0,119320.0,0.01552072]
[1752697071973,0.20115536,119310.0,119300.0,0.56093891]
[1752697072191,0.35035536,119310.0,119300.0,1.31969341]
[1752697072404,0.18271898,119310.0,119300.0,1.32179341]
[1752697072620,0.1911005,119310.0,119300.0,1.33340549]
[1752697072845,0.1911005,119310.0,119300.0,1.32502341]
[1752697073317,0.1827194,119310.0,119300.0,1.47462341]
[1752697073555,0.1827194,119310.0,119300.0,1.32502341]
[1752697073798,0.1827194,119310.0,119300.0,1.71856938]
[1752697074005,0.1827194,119310.0,119300.0,1.33340549]
[1752697074450,0.1827194,119310.0,119300.0,1.14899672]
[1752697074686,0.17601206,119310.0,119300.0,1.0738805]
[1752697074907,0.17601206,119310.0,119300.0,0.75649032]
[1752697075143,0.17601206,119310.0,119300.0,0.77204312]
[1752697075614,0.17601206,119310.0,119300.0,0.7720493]
[1752697075822,0.17601206,119310.0,119300.0,0.7740493]
[1752697076863,0.17601206,119310.0,119300.0,0.7021663]
[1752697078641,0.17601206,119310.0,119300.0,0.3790393]
[1752697078852,0.17601206,119310.0,119300.0,1.2086383]
[1752697079083,0.17601206,119310.0,119300.0,1.76982886]
[1752697079294,0.17601206,119310.0,119300.0,1.77821101]
[1752697079728,0.00838152,119310.0,119300.0,1.78659302]
[1752697079953,0.18439323,119310.0,119300.0,3.63050833]
[1752697080167,0.18439323,119310.0,119300.0,3.14869637]
[1752697080381,0.18439323,119310.0,119300.0,3.17447838]
[1752697080609,0.18439323,119310.0,119300.0,3.18286025]
[1752697080814,0.01676269,119310.0,119300.0,3.19124198]
[1752697081039,0.19277475,119310.0,119300.0,3.18286025]
[1752697081249,0.01676269,119310.0,119300.0,3.83656563]
[1752697081779,0.01676269,119310.0,119300.0,3.8198021]
[1752697082055,0.16980244,119330.0,119300.0,3.81142002]
[1752697082351,0.01057956,119330.0,119320.0,0.55817778]
[1752697082530,0.01883892,119340.0,119330.0,0.56574196]
[1752697082757,0.01883892,119340.0,119330.0,3.07018347]
[1752697083017,0.01883885,119340.0,119330.0,3.07018347]
[1752697083236,0.01883885,119340.0,119330.0,3.07856317]
[1752697083457,0.01883885,119340.0,119330.0,5.25096286]
[1752697083687,0.05235538,119340.0,119330.0,1.21742872]
[1752697083907,0.20318601,119340.0,119330.0,1.21742522]
[1752697084374,0.19480702,119340.0,119330.0,1.21742522]
[1752697084589,0.19480702,119340.0,119330.0,1.12989522]
[1752697084802,0.18642782,119340.0,119330.0,0.96229278]
[1752697085022,0.1780484,119340.0,119330.0,0.95391273]
[1752697085271,0.1780484,119340.0,119330.0,0.96229285]
[1752697085487,0.1780484,119340.0,119330.0,1.61097985]
[1752697086015,0.1780484,119340.0,119330.0,1.51444585]
[1752697086255,0.16799556,119340.0,119330.0,1.50606573]
[1752697086464,0.16799556,119340.0,119330.0,0.73492573]
[1752697086732,0.17003556,119340.0,119330.0,0.53752545]
[1752697087013,0.34441556,119340.0,119330.0,0.04040745]
[1752697087235,0.19073556,119340.0,119330.0,0.88250745]
[1752697087480,0.16799556,119340.0,119330.0,0.41863745]
[1752697087695,0.16799556,119340.0,119330.0,0.38573745]
[1752697087913,0.17003556,119340.0,119330.0,0.38573745]
[1752697088134,0.18763556,119340.0,119330.0,0.38250745]
[1752697088584,0.60078153,119340.0,119330.0,0.04040745]
[1752697088857,0.18439309,119310.0,119300.0,0.52308032]
[1752697089068,0.18439309,119310.0,119300.0,0.4707726]
[1752697089292,0.18439309,119310.0,119300.0,0.8107726]
[1752697089520,0.18439309,119310.0,119300.0,1.22171857]
[1752697089739,0.18439309,119310.0,119300.0,1.23921857]
[1752697089959,0.18439309,119310.0,119300.0,0.96760072]
[1752697090191,0.18439309,119310.0,119300.0,1.12686316]
[1752697090412,0.01676213,119310.0,119300.0,1.15200898]
[1752697090642,0.02514351,119310.0,119300.0,1.48362725]
[1752697090875,0.03352496,119310.0,119300.0,1.49200905]
[1752697091085,0.03352496,119310.0,119300.0,1.09846308]
[1752697091294,0.03352496,119310.0,119300.0,1.38158128]
[1752697091713,0.19277405,119310.0,119300.0,1.38996308]
[1752697091932,0.19277405,119310.0,119300.0,1.78350912]
[1752697091933,0.2011555,119310.0,119300.0,1.78350912]
[1752697092142,0.02514351,119310.0,119300.0,1.79289085]
[1752697092403,0.00670814,119310.0,119300.0,1.79289085]
[1752697092683,0.01508931,119310.0,119300.0,1.79289085]
[1752697092985,0.01508931,119310.0,119300.0,1.39934488]
[1752697093507,0.01508931,119310.0,119300.0,6.41500885]
[1752697094049,0.01508931,119310.0,119300.0,6.41400885]
[1752697094661,0.02347069,119310.0,119300.0,6.03530685]
[1752697094663,0.02347069,119310.0,119300.0,6.41400885]
[1752697094666,0.00837963,119330.0,119320.0,0.18436553]
[1752697094867,0.00837949,119330.0,119320.0,5.37558]
[1752697095223,0.18475418,119340.0,119330.0,0.3735]
[1752697095437,0.18475418,119340.0,119330.0,3.469891]
[1752697095654,0.18475418,119340.0,119330.0,0.46425028]
[1752697095869,0.18475418,119340.0,119330.0,0.81881028]
[1752697096082,0.18475418,119340.0,119330.0,0.75151428]
[1752697096304,0.17470131,119340.0,119330.0,0.75467428]
[1752697096579,0.17470131,119340.0,119330.0,0.71618928]
[1752697096798,0.17470131,119340.0,119330.0,0.43075028]
[1752697097041,0.17470131,119340.0,119330.0,0.71618928]
[1752697097249,0.17470131,119340.0,119330.0,1.00768928]
[1752697097964,0.17470131,119340.0,119330.0,1.01921106]
[1752697098631,0.17470131,119340.0,119330.0,1.03551106]
[1752697098850,0.17470131,119340.0,119330.0,1.56937606]
[1752697099065,0.17470131,119340.0,119330.0,1.51574806]
[1752697099974,0.17470131,119340.0,119330.0,1.74819706]
[1752697100194,0.17470131,119340.0,119330.0,1.76539706]
[1752697100195,0.1675884,119340.0,119330.0,1.76539706]
[1752697100448,0.1675884,119340.0,119330.0,2.14174303]
[1752697100865,0.1675884,119340.0,119330.0,2.63048328]
[1752697101079,0.1675884,119340.0,119330.0,2.23693731]
[1752697101289,0.1675884,119340.0,119330.0,2.08271806]
[1752697101509,0.1675884,119340.0,119330.0,1.78001992]
[1752697101725,0.1675884,119340.0,119330.0,2.17356589]
[1752697101943,0.1675884,119340.0,119330.0,2.26221189]
[1752697102203,0.15921127,119340.0,119330.0,2.26221189]
[1752697102629,0.15083414,119340.0,119330.0,2.26221189]
[1752697103041,0.13240386,119340.0,119330.0,2.05095592]
[1752697103253,0.13240386,119340.0,119330.0,1.65504992]
[1752697103472,0.12402673,119340.0,119330.0,2.04859589]
[1752697103911,0.1156496,119340.0,119330.0,0.77878792]
[1752697104180,0.1156496,119340.0,119330.0,1.56954992]
[1752697104417,0.1156496,119340.0,119330.0,1.96309589]
[1752697104640,0.1156496,119340.0,119330.0,1.56954992]
[1752697104865,0.00837934,119340.0,119330.0,1.58704992]
[1752697105093,0.17596774,119340.0,119330.0,2.81484192]
[1752697105296,0.18434695,119340.0,119330.0,2.51425089]
[1752697105552,0.19272629,119340.0,119330.0,2.41889892]
[1752697105782,0.18434916,119340.0,119330.0,2.72758389]
[1752697105998,0.17597003,119340.0,119330.0,2.61412889]
[1752697106266,0.16591721,119340.0,119330.0,2.63561889]
[1752697106482,0.16591721,119340.0,119330.0,2.03935789]
[1752697106698,0.16591721,119340.0,119330.0,2.44717389]
[1752697106920,0.18211721,119340.0,119330.0,2.41491703]
[1752697107139,0.16591721,119340.0,119330.0,1.91615806]
[1752697107355,0.16591721,119340.0,119330.0,2.26174125]
[1752697107584,0.16591721,119340.0,119330.0,2.39896128]
[1752697107801,0.16591721,119340.0,119330.0,2.42055828]
[1752697108089,0.16591721,119340.0,119330.0,1.13333625]
[1752697108310,0.16591721,119340.0,119330.0,0.92204828]
[1752697108539,0.16591721,119340.0,119330.0,1.31559425]
[1752697108983,0.16591721,119340.0,119330.0,2.10802528]
[1752697109201,0.16591721,119340.0,119330.0,2.14365625]
[1752697109462,0.2042143,119350.0,119340.0,0.016]
[1752697109724,0.19583608,119350.0,119340.0,2.87816682]
[1752697109971,0.19583608,119350.0,119340.0,2.87607197]
[1752697110198,0.19583608,119350.0,119340.0,4.93812497]
[1752697110460,0.19583608,119350.0,119340.0,3.664438]
[1752697110686,0.18754177,119350.0,119340.0,2.835475]
[1752697110903,0.18754177,119350.0,119340.0,3.22145025]
[1752697111123,0.18754177,119350.0,119340.0,3.05734125]
[1752697111347,0.18754177,119350.0,119340.0,2.82897028]
[1752697111577,0.18754177,119350.0,119340.0,2.13395041]
[1752697111834,0.18754177,119350.0,119340.0,2.55741641]
[1752697112049,0.18754177,119350.0,119340.0,2.27399241]
[1752697112289,0.18961177,119350.0,119340.0,0.11915044]
[1752697112501,0.20907177,119350.0,119340.0,0.37760044]
[1752697112708,0.37363177,119350.0,119340.0,0.21280044]
[1752697114264,0.20907177,119350.0,119340.0,0.21280044]
[1752697115551,0.20907177,119350.0,119340.0,0.21280141]
[1752697116461,0.20907177,119350.0,119340.0,0.55280141]
[1752697116911,0.20907177,119350.0,119340.0,0.35556113]
[1752697117129,0.22507177,119350.0,119340.0,0.35556113]
[1752697117338,0.61861774,119350.0,119340.0,0.35556113]
[1752697117553,0.22507177,119350.0,119340.0,0.35556113]
[1752697117766,0.61861774,119350.0,119340.0,0.35556113]
[1752697118428,0.61861774,119350.0,119340.0,0.01556113]
[1752697118874,0.22507177,119350.0,119340.0,0.01556113]
[1752697119094,0.22507177,119350.0,119340.0,0.35556113]
[1752697119548,0.61861774,119350.0,119340.0,0.35556113]
[1752697120202,0.22507177,119350.0,119340.0,0.35556113]
[1752697120635,0.61861774,119350.0,119340.0,0.35556113]
[1752697120922,0.22507177,119350.0,119340.0,0.01556113]
[1752697121357,0.61861774,119350.0,119340.0,0.01556113]
[1752697121574,0.60856413,119350.0,119340.0,0.01556113]
[1752697123096,0.21501816,119350.0,119340.0,0.01556113]
[1752697123459,0.60856413,119350.0,119340.0,0.01556113]
[1752697123992,0.20936767,119340.0,119330.0,0.02515057]
[1752697124212,0.76801364,119340.0,119330.0,0.04073041]
[1752697124425,0.37753767,119340.0,119330.0,0.04073041]
[1752697127214,0.77108364,119340.0,119330.0,0.04073041]
[1752697129227,0.37753767,119340.0,119330.0,0.04073041]
[1752697129544,0.77108364,119340.0,119330.0,0.04073041]
[1752697129960,0.37753767,119340.0,119330.0,0.04072824]
[1752697130161,0.77108364,119340.0,119330.0,0.04072824]
[1752697130572,0.37753767,119340.0,119330.0,0.04072824]
[1752697131304,0.37753767,119340.0,119330.0,0.01561767]
[1752697131542,0.87113477,119340.0,119330.0,0.01561767]
[1752697132192,0.70809477,119340.0,119330.0,0.01561767]
[1752697132378,0.86917477,119340.0,119330.0,0.01561767]
[1752697132848,0.70809477,119340.0,119330.0,4e-05]
[1752697133066,0.86905477,119340.0,119330.0,0.01562046]
[1752697133504,0.70809477,119340.0,119330.0,1e-08]
[1752697133725,0.86893477,119340.0,119330.0,1e-08]
[1752697133948,0.99657436,119330.0,119320.0,1e-08]
[1752697134171,1.08721464,119330.0,119320.0,1e-08]
[1752697135393,0.3001227,119330.0,119320.0,1e-08]
[1752697135864,0.31466355,119330.0,119320.0,1e-08]
[1752697136342,0.70820952,119330.0,119320.0,1e-08]
[1752697137045,0.71220952,119330.0,119320.0,1e-08]
[1752697137265,0.70820952,119330.0,119320.0,1e-08]
[1752697137505,0.87492952,119330.0,119320.0,1e-08]
[1752697137721,0.87792952,119330.0,119320.0,1e-08]
[1752697140239,1.27147549,119330.0,119320.0,1e-08]
[1752697140452,0.48438355,119330.0,119320.0,1e-08]
[1752697140684,1.27147549,119330.0,119320.0,1e-08]
[1752697140903,1.27147549,119330.0,119310.0,0.34]
[1752697140904,0.19055277,119310.0,119300.0,0.02706439]
[1752697141121,0.20202401,119290.0,119280.0,0.002]
[1752697141362,0.20202401,119290.0,119280.0,1e-08]
[1752697141363,0.78014998,119290.0,119280.0,1e-08]
[1752697141582,1.12321998,119290.0,119280.0,1e-08]
[1752697141806,1.22327111,119290.0,119280.0,1e-08]
[1752697142235,0.88327111,119290.0,119280.0,1e-08]
[1752697142502,0.48972514,119290.0,119280.0,1e-08]
[1752697142717,0.6122009,119270.0,119260.0,1e-08]
[1752697142940,0.86286386,119270.0,119250.0,1e-08]
[1752697143160,0.86286386,119270.0,119240.0,0.002]
[1752697143161,0.19320048,119250.0,119240.0,0.002]
[1752697143383,0.36062048,119250.0,119240.0,0.00212658]
[1752697143602,0.36062048,119250.0,119240.0,0.0267728]
[1752697143826,0.17610048,119250.0,119240.0,0.00408658]
[1752697144053,0.17610048,119250.0,119240.0,0.02337658]
[1752697144716,0.19320048,119250.0,119240.0,0.00408658]
[1752697144938,0.58298832,119250.0,119240.0,0.00212658]
[1752697145383,0.58298832,119250.0,119240.0,0.34212658]
[1752697145608,0.19833048,119250.0,119240.0,0.34212658]
[1752697146530,0.19833048,119250.0,119240.0,0.00212658]
[1752697146756,0.36957048,119250.0,119240.0,0.00212658]
[1752697147191,0.36957048,119250.0,119240.0,0.00312658]
[1752697147407,0.36957048,119250.0,119240.0,0.00212658]
[1752697149283,0.75422832,119250.0,119240.0,0.00212658]
[1752697149534,0.36957048,119250.0,119240.0,0.00212658]
[1752697151946,0.36957048,119250.0,119240.0,0.00312658]
[1752697152173,0.18661134,119250.0,119240.0,0.80064658]
[1752697152396,0.36271175,119250.0,119240.0,0.65291158]
[1752697152830,0.35432622,119250.0,119240.0,0.48587958]
[1752697153259,0.35432622,119250.0,119240.0,0.36507658]
[1752697153474,0.35420622,119250.0,119240.0,0.50087958]
[1752697153690,0.35420622,119250.0,119240.0,0.36507658]
[1752697153898,0.35420622,119250.0,119240.0,0.53263358]
[1752697154803,0.35420622,119250.0,119240.0,0.36407658]
[1752697155031,0.18448622,119250.0,119240.0,0.36407658]
[1752697155272,0.35408622,119250.0,119240.0,0.97293558]
[1752697155477,0.18637134,119250.0,119240.0,0.93361358]
[1752697155736,0.18637099,119250.0,119240.0,0.93461358]
[1752697155947,0.35408587,119250.0,119240.0,0.53170658]
[1752697156156,0.18448587,119250.0,119240.0,0.53170658]
[1752697156378,0.19399673,119250.0,119240.0,0.53170658]
[1752697156613,0.18447047,119260.0,119250.0,0.34]
[1752697156828,0.35529069,119260.0,119250.0,0.342]
[1752697157050,0.01882958,119260.0,119250.0,0.342]
[1752697157272,0.3551704,119260.0,119250.0,0.36251]
[1752697157489,0.00838447,119260.0,119250.0,0.572178]
[1752697157733,0.18532908,119260.0,119250.0,0.912178]
[1752697157943,0.00838447,119260.0,119250.0,1.07989288]
[1752697158155,0.1768644,119260.0,119250.0,1.09679288]
[1752697158375,0.16848,119260.0,119250.0,1.09679288]
[1752697158813,0.1768644,119260.0,119250.0,1.09679288]
[1752697159039,0.16848,119260.0,119250.0,1.09679288]
[1752697159722,0.1768644,119260.0,119250.0,1.09679288]
[1752697159909,0.1768644,119260.0,119250.0,0.929078]
[1752697160166,0.16848,119260.0,119250.0,1.09679288]
[1752697160831,0.2012231,119270.0,119260.0,0.34]
[1752697161046,0.3690231,119270.0,119260.0,0.342]
[1752697161259,0.19295201,119270.0,119260.0,0.342]
[1752697161553,0.36902296,119270.0,119260.0,0.342]
[1752697161742,0.37108345,119270.0,119260.0,0.342]
[1752697162431,0.3626994,119270.0,119260.0,0.342]
[1752697163094,0.3636994,119270.0,119260.0,0.342]
[1752697163548,0.20233571,119270.0,119260.0,0.34501]
[1752697163766,0.21072004,119270.0,119260.0,0.34501]
[1752697163978,0.20233571,119270.0,119260.0,0.34501]
[1752697164215,0.37208303,119270.0,119260.0,0.34501]
[1752697164643,0.37208303,119270.0,119260.0,0.342]
[1752697165531,0.19601208,119270.0,119260.0,0.34501]
[1752697165741,0.19601208,119270.0,119260.0,0.00501]
[1752697166412,0.20439641,119270.0,119260.0,0.00501]
[1752697166627,0.36369919,119270.0,119260.0,0.002]
[1752697166838,0.38410919,119270.0,119260.0,0.002]
[1752697167524,0.37572521,119270.0,119260.0,0.002]
[1752697168605,0.20792521,119270.0,119260.0,0.002]
[1752697168819,0.37436521,119270.0,119260.0,0.002]
[1752697170413,0.20792521,119270.0,119260.0,0.002]
[1752697170602,0.37396521,119270.0,119260.0,0.002]
[1752697171713,0.76762771,119270.0,119260.0,0.002]
[1752697171930,0.0251539,119260.0,119250.0,0.36051]
[1752697172144,0.01509386,119260.0,119250.0,0.533149]
[1752697172354,0.01676887,119260.0,119250.0,0.510476]
[1752697172574,0.02515348,119260.0,119250.0,0.510476]
[1752697172796,0.01676887,119260.0,119250.0,0.36251]
[1752697173009,0.01676887,119260.0,119250.0,0.475449]
[1752697173223,0.01676887,119260.0,119250.0,0.488783]
[1752697173439,0.02515348,119260.0,119250.0,0.470143]
[1752697174358,0.02515348,119260.0,119250.0,0.34]
[1752697174359,0.60189801,119260.0,119250.0,0.34]
[1752697174578,0.61740304,119260.0,119250.0,0.34]
[1752697174867,0.22374054,119260.0,119250.0,0.34]
[1752697175120,0.61740304,119260.0,119250.0,0.34]
[1752697175996,0.59980304,119260.0,119250.0,0.34]
[1752697176449,0.20614054,119260.0,119250.0,0.34]
[1752697176720,0.59980304,119260.0,119250.0,0.34]
[1752697176938,0.76440304,119260.0,119250.0,0.34]
[1752697177154,0.75601829,119260.0,119250.0,0.34]
[1752697181557,0.36235579,119260.0,119250.0,0.34]
[1752697181784,0.75601829,119260.0,119250.0,0.34]
[1752697184166,0.59670222,119260.0,119250.0,0.34]
[1752697184898,0.76440304,119260.0,119250.0,0.34]
[1752697185118,0.19465454,119260.0,119250.0,0.34]
[1752697185333,0.21142398,119260.0,119250.0,0.34]
[1752697185544,0.20303901,119260.0,119250.0,0.34]
[1752697185760,0.16244,119260.0,119250.0,2.01555505]
[1752697185981,0.01676761,119270.0,119260.0,0.0169]
[1752697186212,0.0177,119280.0,119260.0,0.92333189]
[1752697186435,0.01038229,119290.0,119270.0,1.93774657]
[1752697186656,0.002,119290.0,119280.0,0.1866227]
[1752697186906,0.002,119290.0,119280.0,4.00368046]
[1752697187110,0.002,119290.0,119280.0,2.85728996]
[1752697187326,0.002,119290.0,119280.0,2.51016033]
[1752697187764,0.002,119290.0,119280.0,2.97668833]
[1752697187976,0.002,119290.0,119280.0,2.97184133]
[1752697188220,0.002,119290.0,119280.0,2.75060333]
[1752697188893,0.57434442,119310.0,119280.0,3.01573133]
[1752697189143,0.17318509,119310.0,119290.0,1.39805685]
[1752697189371,0.57727869,119310.0,119300.0,0.00205]
[1752697189603,0.57727869,119310.0,119300.0,0.01764831]
[1752697190053,0.59487869,119310.0,119300.0,0.01764831]
[1752697190727,0.19283509,119310.0,119300.0,0.01764831]
[1752697191172,0.03691509,119310.0,119300.0,0.01764831]
[1752697191409,0.03901006,119310.0,119300.0,0.01764831]
[1752697191621,0.43267256,119310.0,119300.0,0.01764831]
[1752697191838,0.43057759,119310.0,119300.0,0.01764831]
[1752697192351,0.03691509,119310.0,119300.0,0.01764831]
[1752697192578,0.03062903,119310.0,119300.0,0.01764831]
[1752697192805,0.43267249,119310.0,119300.0,0.04270499]
[1752697193040,0.43157752,119310.0,119300.0,0.01760891]
[1752697193499,0.03791502,119310.0,119300.0,0.01760891]
[1752697193740,0.03900999,119310.0,119300.0,0.02943659]
[1752697193982,0.43267249,119310.0,119300.0,0.02943659]
[1752697194220,0.43895862,119310.0,119300.0,0.0294308]
[1752697194443,0.43057752,119310.0,119300.0,0.0294308]
[1752697195162,0.00255317,119310.0,119300.0,0.53707539]
[1752697195388,0.00050317,119310.0,119300.0,0.55819539]
[1752697195606,0.00050317,119310.0,119300.0,0.57559539]
[1752697195822,0.00050317,119310.0,119300.0,0.55819539]
[1752697197532,0.00050317,119310.0,119300.0,0.59197302]
[1752697197735,0.00050317,119310.0,119300.0,0.5835908]
[1752697198794,0.00050317,119310.0,119300.0,0.7432308]
[1752697199358,0.00050317,119310.0,119300.0,0.7442308]
[1752697199949,0.00050317,119310.0,119300.0,0.75261302]
[1752697200187,0.00050317,119310.0,119300.0,0.75258705]
[1752697200317,0.00050317,119310.0,119300.0,0.78735114]
[1752697200521,0.00050317,119310.0,119300.0,2.40473528]
[1752697200720,0.00050317,119310.0,119300.0,2.41311722]
[1752697200925,0.00050317,119310.0,119300.0,2.41311687]
[1752697201285,0.00050317,119310.0,119300.0,2.3808257]
[1752697201424,0.00050317,119310.0,119300.0,2.35197452]
[1752697201632,0.00050317,119310.0,119300.0,2.36035653]
[1752697202065,0.00050317,119310.0,119300.0,2.36873833]
[1752697202721,0.00050317,119310.0,119300.0,2.1865004]
[1752697202908,0.00050317,119310.0,119300.0,2.18650033]
[1752697203111,0.00050317,119310.0,119300.0,2.17811853]
[1752697203314,0.00050317,119310.0,119300.0,2.16135444]
[1752697203493,0.00050317,119310.0,119300.0,1.56669944]
[1752697203689,0.00050317,119310.0,119300.0,1.30521944]
[1752697203916,0.00050317,119310.0,119300.0,1.26112956]
[1752697204050,0.5606029,119320.0,119300.0,1.25274734]
[1752697204251,0.57922934,119320.0,119300.0,0.74311634]
[1752697204452,0.5876096,119320.0,119300.0,0.74311634]
[1752697204700,0.5876096,119320.0,119300.0,0.75149856]
[1752697204929,0.1939471,119320.0,119300.0,0.75149856]
[1752697205140,0.5792292,119320.0,119300.0,0.75988071]
[1752697205288,0.5792292,119320.0,119300.0,0.75149856]
[1752697205508,0.57922927,119320.0,119300.0,0.75988071]
[1752697205715,0.57084894,119320.0,119300.0,0.75149856]
[1752697205919,0.5792292,119320.0,119300.0,0.75988071]
[1752697206138,0.5792292,119320.0,119300.0,0.75888071]
[1752697206367,0.5792292,119320.0,119300.0,0.74211634]
[1752697206582,0.01676199,119310.0,119300.0,0.57547175]
[1752697206780,0.02514323,119310.0,119300.0,0.78948975]
[1752697207453,0.02514323,119310.0,119300.0,0.77397109]
[1752697207671,0.04190599,119310.0,119300.0,0.78949323]
[1752697208133,0.00012644,119320.0,119310.0,3.88624092]
[1752697208358,0.00012644,119320.0,119310.0,0.78655242]
[1752697208570,0.00012644,119320.0,119310.0,0.9562102]
[1752697209225,0.00012644,119320.0,119310.0,2.8834712]
[1752697209876,0.00012644,119320.0,119310.0,2.8590452]
[1752697210082,0.00012644,119320.0,119310.0,2.62785214]
[1752697210294,0.00012644,119320.0,119310.0,2.63618617]
[1752697210947,0.00012644,119320.0,119310.0,1.87068517]
[1752697211401,0.00012644,119320.0,119310.0,2.04116417]
[1752697211619,0.00012644,119320.0,119310.0,2.03574717]
[1752697211839,0.00012644,119320.0,119310.0,2.11199817]
[1752697212041,0.00012644,119320.0,119310.0,2.08949617]
[1752697212353,0.00012644,119320.0,119310.0,2.07415317]
[1752697212522,0.00012644,119320.0,119310.0,2.06066217]
[1752697212723,0.18277711,119340.0,119310.0,2.06913217]
[1752697212724,0.75240746,119340.0,119310.0,2.06913217]
[1752697212929,0.60520925,119340.0,119320.0,0.2495462]
[1752697213170,0.60520925,119340.0,119330.0,0.5]
[1752697213305,0.60725925,119340.0,119330.0,0.51552011]
[1752697213501,0.77484765,119340.0,119330.0,0.51552011]
[1752697213757,0.60725925,119340.0,119330.0,0.51552011]
[1752697213958,0.60725925,119340.0,119330.0,0.01552011]
[1752697214167,0.60725925,119340.0,119330.0,0.51552011]
[1752697214806,0.59887991,119340.0,119330.0,0.51552011]
[1752697215072,0.21359675,119340.0,119330.0,0.51552011]
[1752697215267,0.77484765,119340.0,119330.0,0.51552011]
[1752697215806,0.60725925,119340.0,119330.0,0.51552011]
[1752697216662,0.59720466,119340.0,119330.0,0.51552011]
[1752697217094,0.60558358,119340.0,119330.0,0.51552011]
[1752697217482,0.613963,119340.0,119330.0,0.51552011]
[1752697217689,0.76646909,119340.0,119330.0,0.51552011]
[1752697217898,0.75808996,119340.0,119330.0,0.51552011]
[1752697218111,0.36442746,119340.0,119330.0,0.51552011]
[1752697218335,0.38182746,119340.0,119330.0,0.51552011]
[1752697218556,0.77548996,119340.0,119330.0,0.01552011]
[1752697218807,0.01676087,119320.0,119310.0,0.44764028]
[1752697219019,0.00670585,119320.0,119310.0,1.0964231]
[1752697219241,0.02346707,119320.0,119310.0,1.0964231]
[1752697219457,0.01508639,119320.0,119310.0,1.0964231]
[1752697219677,0.02346707,119320.0,119310.0,1.0964231]
[1752697219922,0.01508639,119320.0,119310.0,1.0964231]
[1752697220168,0.20256231,119330.0,119310.0,1.1137231]
[1752697220380,0.61298491,119330.0,119320.0,0.49911]
[1752697220623,0.43700209,119330.0,119320.0,0.51468382]
[1752697220845,0.44538221,119330.0,119320.0,0.51668382]
[1752697221064,0.44538214,119330.0,119320.0,0.51668382]
[1752697221290,0.01675919,119330.0,119320.0,0.51668382]
[1752697221511,0.00837949,119330.0,119320.0,0.51668382]
[1752697221740,0.00637949,119330.0,119320.0,0.53418382]
[1752697221969,0.59469055,119340.0,119320.0,0.53418382]
[1752697222186,0.76227912,119340.0,119320.0,0.53418382]
[1752697222406,0.59469055,119340.0,119320.0,0.53418382]
[1752697222682,0.58631113,119340.0,119330.0,0.00323]
[1752697222894,0.36231703,119340.0,119330.0,0.02080382]
[1752697223120,0.76435895,119340.0,119330.0,0.01757382]
[1752697223796,0.20310797,119340.0,119330.0,0.01757382]
[1752697224024,0.59677055,119340.0,119330.0,0.01757382]
[1752697224702,0.76435895,119340.0,119330.0,0.01757382]
[1752697224911,0.76753895,119340.0,119330.0,0.01757382]
[1752697225125,0.76753895,119340.0,119330.0,0.01557382]
[1752697227321,0.76753895,119340.0,119320.0,0.51661]
[1752697227532,0.76753895,119340.0,119320.0,0.53219483]
[1752697227761,0.00837949,119330.0,119320.0,0.53219483]
[1752697228001,0.02513889,119330.0,119320.0,0.37831483]
[1752697228207,0.01675912,119330.0,119320.0,0.37831483]
[1752697228886,0.02513882,119330.0,119320.0,0.37831483]
[1752697229106,0.01508418,119330.0,119320.0,0.37831483]
[1752697230205,0.00837949,119330.0,119320.0,0.37831483]